bitfinex-derivatives/quotes_ETHF0:USTF0_20241228
["timestamp","ask_amount","ask_price","bid_price","bid_amount"]
[1735386505807,0.466,3355.3,3355.2,0.29856]
[1735386506109,3.50635,3355.4,3355.2,0.29856]
[1735386506414,3.50635,3355.4,3355.3,0.4663]
[1735386508309,3.50635,3355.4,3355.2,0.29856]
[1735386508904,0.442,3355.3,3355.2,0.29856]
[1735386510312,0.74055,3355.3,3355.2,0.29856]
[1735386511415,0.74055,3355.3,3355.1,4.65401706]
[1735386511616,0.74055,3355.3,3355.2,0.29856]
[1735386513117,0.442,3355.3,3354.9,4.65401706]
[1735386513417,0.29858,3355.0,3354.9,4.65401706]
[1735386513617,0.2986,3354.8,3354.7,7.86181706]
[1735386514319,0.2986,3354.8,3354.7,4.95262706]
[1735386515114,0.2986,3354.8,3354.7,0.29861]
[1735386515320,0.7447,3354.8,3354.7,0.29861]
[1735386517617,0.7447,3354.8,3354.2,41.54663]
[1735386517818,0.7447,3354.8,3354.3,0.74790613]
[1735386518317,0.7447,3354.8,3354.7,0.29861]
[1735386518617,0.7447,3354.8,3354.6,0.29861]
[1735386519118,0.29861,3354.7,3354.6,0.29861]
[1735386519514,0.74790613,3354.7,3354.2,40.8]
[1735386519723,0.29865,3354.2,3354.1,8.58537706]
[1735386519919,0.29865,3354.2,3354.1,8.28671706]
[1735386520121,0.73995,3354.2,3354.1,7.86181706]
[1735386520418,1.18565,3354.2,3354.1,7.86181706]
[1735386520618,1.18565,3354.2,3354.1,4.65401706]
[1735386521424,1.18565,3354.2,3353.9,0.29867]
[1735386521425,0.29866,3354.1,3353.9,0.29867]
[1735386522222,0.887,3354.2,3353.9,0.29867]
[1735386522415,0.29867,3354.0,3353.9,0.29867]
[1735386523422,0.29867,3354.0,3353.8,41.54790613]
[1735386523423,0.887,3354.2,3353.8,0.74790613]
[1735386523623,0.29867,3354.0,3353.8,1.04658613]
[1735386524025,0.29867,3354.0,3353.8,0.29868]
[1735386524227,0.29867,3354.0,3353.7,1.49259613]
[1735386524427,3.2078,3353.9,3353.7,1.49259613]
[1735386524815,3.2078,3353.9,3353.7,1.19390613]
[1735386525120,3.2078,3353.9,3353.7,1.49259613]
[1735386525321,3.2078,3353.9,3353.7,1.19390613]
[1735386525322,3.50648,3353.9,3353.7,1.19390613]
[1735386525716,0.2987,3353.7,3353.5,40.8]
[1735386525925,0.2987,3353.6,3353.5,40.8]
[1735386526126,0.7684,3353.6,3353.5,40.8]
[1735386526323,0.29871,3353.5,3353.4,0.4331]
[1735386526727,0.76841,3353.6,3353.4,0.4331]
[1735386526920,0.4242,3353.5,3353.4,0.4331]
[1735386527517,0.72291,3353.5,3353.4,0.4331]
[1735386527928,0.29873,3353.3,3353.2,0.74790613]
[1735386529722,3.2078,3353.4,3353.2,0.74790613]
[1735386529723,3.50652,3353.4,3353.2,0.74790613]
[1735386529917,3.50653,3353.4,3353.2,0.74790613]
[1735386530524,3.50653,3353.4,3353.2,1.04664613]
[1735386531124,3.2078,3353.4,3353.2,1.04664613]
[1735386531322,3.50652,3353.4,3353.2,0.74790613]
[1735386531723,0.29873,3353.3,3353.2,0.74790613]
[1735386532027,3.2078,3353.4,3353.0,0.74790613]
[1735386532223,3.2078,3353.4,3353.2,0.29874]
[1735386532623,3.50652,3353.4,3353.2,0.29874]
[1735386533433,3.50652,3353.4,3353.0,0.74790613]
[1735386533630,3.50652,3353.4,3353.1,0.29874]
[1735386535027,3.2078,3353.4,3353.0,0.74790613]
[1735386535234,0.29874,3353.3,3353.0,1.04665613]
[1735386535934,3.50652,3353.4,3353.1,0.29874]
[1735386537831,0.29873,3353.3,3353.1,0.29874]
[1735386538024,0.29873,3353.3,3353.0,0.74790613]
[1735386538228,3.50652,3353.4,3353.1,0.29874]
[1735386540140,3.2078,3353.4,3353.0,0.74790613]
[1735386540433,0.29873,3353.3,3353.1,0.29875]
[1735386541442,3.2078,3353.4,3352.9,0.4652]
[1735386541740,3.2078,3353.4,3353.0,0.29875]
[1735386541741,0.29875,3353.2,3353.0,0.29875]
[1735386542235,0.4287,3353.1,3353.0,0.29875]
[1735386545139,3.2078,3353.4,3353.3,0.29873]
[1735386545740,3.2078,3353.4,3353.3,1.21313]
[1735386548234,0.74790613,3353.6,3353.3,0.9144]
[1735386548540,0.74790613,3353.6,3353.5,0.29871]
[1735386549239,0.74790613,3353.6,3353.2,0.74790613]
[1735386549437,0.74790613,3353.6,3353.5,0.29871]
[1735386549836,3.6688,3353.7,3353.6,0.2987]
[1735386550543,3.96749,3353.7,3353.6,0.2987]
[1735386551741,3.6688,3353.7,3353.2,0.74790613]
[1735386552043,0.29871,3353.6,3353.5,0.29871]
[1735386553044,0.75081,3353.6,3353.5,0.29871]
[1735386556542,1.49871613,3353.6,3353.5,0.29871]
[1735386557041,1.20000613,3353.6,3352.9,4.1319]
[1735386557241,0.29875,3353.1,3353.0,0.29876]
[1735386558550,0.29875,3353.1,3352.9,3.97176]
[1735386558751,0.885,3353.3,3352.9,3.673]
[1735386559047,0.29874,3353.2,3353.0,0.29876]
[1735386559247,0.29874,3353.2,3352.9,3.673]
[1735386559547,0.29874,3353.2,3353.0,0.29876]
[1735386559947,0.885,3353.3,3353.0,0.74790613]
[1735386560148,1.20000613,3353.6,3353.3,0.29872]
[1735386560149,1.49871613,3353.6,3353.3,0.29872]
[1735386560446,1.63970613,3353.6,3353.3,0.29872]
[1735386560645,0.75232,3353.5,3353.3,0.29872]
[1735386563452,0.4536,3353.5,3353.1,0.895]
[1735386563643,0.29872,3353.4,3353.2,0.29873]
[1735386564652,0.4536,3353.5,3352.9,5.11921706]
[1735386564853,0.29873,3353.4,3353.2,0.29874]
[1735386566950,0.29872,3353.4,3353.2,0.72853]
[1735386567851,0.29872,3353.4,3353.2,5.38254706]
[1735386569356,0.29873,3353.3,3353.2,4.65401706]
[1735386569556,0.4536,3353.5,3353.4,0.29872]
[1735386570755,0.4536,3353.5,3353.4,0.73232]
[1735386572151,0.4536,3353.5,3353.4,5.38633706]
[1735386573656,3.6475,3353.6,3353.4,5.83552319]
[1735386573857,3.657,3354.0,3353.4,5.83552319]
[1735386574061,4.40437,3354.0,3353.8,0.29868]
[1735386574658,4.40437,3354.0,3353.9,0.29868]
[1735386576160,4.1057,3354.0,3353.7,5.12381706]
[1735386576360,0.29868,3353.9,3353.8,0.29868]
[1735386577256,4.40437,3354.0,3353.8,0.29868]
[1735386579056,4.40437,3354.0,3353.7,0.4698]
[1735386579254,4.40437,3354.0,3353.9,0.29868]
[1735386581160,1.19657,3354.0,3353.9,0.29868]
[1735386585060,0.8979,3354.0,3353.9,0.29868]
[1735386585464,0.4487,3354.0,3353.9,0.29868]
[1735386585766,3.2078,3354.2,3354.1,0.29866]
[1735386587964,0.29868,3353.9,3353.8,4.95269706]
[1735386588165,1.04658613,3353.9,3353.8,4.95269706]
[1735386588668,1.04658613,3353.9,3353.8,4.65401706]
[1735386589368,1.04658613,3353.9,3353.8,0.29869]
[1735386589569,1.04658613,3353.9,3353.7,0.29869]
[1735386589774,1.15699,3353.8,3353.7,0.29869]
[1735386589963,0.8583,3353.8,3353.7,0.29869]
[1735386590364,0.8583,3353.8,3353.5,0.4633]
[1735386590566,0.4497,3353.7,3353.6,0.2987]
[1735386591871,1.19760613,3353.7,3353.6,0.2987]
[1735386594369,0.4497,3353.7,3353.6,0.2987]
[1735386595074,0.428,3353.8,3353.7,0.29869]
[1735386600176,0.4307,3354.1,3354.0,0.29867]
[1735386600471,0.8585,3354.1,3354.0,0.29867]
[1735386600872,0.29863,3354.5,3354.1,0.29866]
[1735386601075,0.74790613,3354.2,3354.0,3.2078]
[1735386601376,0.73876,3354.1,3353.9,40.8]
[1735386601563,1.16656,3354.1,3353.9,40.8]
[1735386601768,0.4278,3354.1,3354.0,0.29867]
[1735386601973,3.2078,3354.2,3354.1,0.29866]
[1735386602573,3.6356,3354.2,3354.1,0.29866]
[1735386604474,3.2078,3354.2,3354.1,0.29866]
[1735386606183,3.2078,3354.2,3354.1,4.95267706]
[1735386606475,0.4449,3354.5,3354.4,0.29863]
[1735386607274,3.95570613,3354.8,3354.4,0.74790613]
[1735386607473,3.95570613,3354.8,3354.6,0.29861]
[1735386607474,0.4675,3354.7,3354.6,0.29861]
[1735386608573,0.4675,3354.7,3354.5,0.73452]
[1735386608874,0.4675,3354.7,3354.5,0.4359]
[1735386609069,0.4675,3354.7,3354.6,0.29861]
[1735386615480,0.29862,3354.6,3354.4,0.29863]
[1735386615785,0.896,3354.5,3354.4,0.29863]
[1735386616482,0.4577,3354.5,3354.4,0.29863]
[1735386617076,0.4577,3354.5,3354.3,0.29863]
[1735386617276,0.4577,3354.5,3354.4,0.29863]
[1735386617879,0.75633,3354.5,3354.2,1.04654613]
[1735386618381,0.75633,3354.5,3354.2,0.29864]
[1735386618878,0.4577,3354.5,3354.2,0.29864]
[1735386619086,0.74790613,3354.4,3354.1,4.65401706]
[1735386619282,0.75633,3354.5,3354.2,0.29864]
[1735386619583,0.4242,3354.3,3354.2,0.29864]
[1735386620784,0.4577,3354.5,3354.4,0.29863]
[1735386621183,0.29863,3354.4,3354.1,0.29865]
[1735386621583,0.4484,3354.3,3354.1,0.29865]
[1735386621783,0.4356,3354.2,3354.1,41.09865]
[1735386623783,0.4484,3354.3,3354.1,40.8]
[1735386623982,0.4484,3354.3,3354.2,0.29865]
[1735386630191,0.4577,3354.5,3354.4,0.29863]
[1735386631588,0.4577,3354.5,3354.2,0.74790613]
[1735386631794,0.4577,3354.5,3354.4,0.29863]
[1735386639086,0.4577,3354.5,3354.4,1.04653613]
[1735386639390,3.2078,3354.8,3354.7,0.29861]
[1735386639989,3.9429,3354.8,3354.7,0.29861]
[1735386640189,4.3797,3354.8,3354.7,0.29861]
[1735386641194,4.3797,3354.8,3354.6,0.29861]
[1735386641394,4.838,3354.8,3354.6,0.29861]
[1735386642092,0.29861,3354.7,3354.6,0.29861]
[1735386650002,1.3316,3354.8,3354.5,0.4248]
[1735386650201,1.3316,3354.8,3354.7,0.29861]
[1735386650202,1.1719,3354.8,3354.7,0.29861]
[1735386651511,0.29861,3354.7,3354.6,0.29861]
[1735386653002,0.8733,3354.8,3354.5,5.07881706]
[1735386653702,0.29861,3354.7,3354.6,0.29861]
[1735386653911,0.29861,3354.7,3354.6,13.26526567]
[1735386655214,0.29861,3354.7,3354.6,6.28424008]
[1735386655908,0.29861,3354.7,3354.6,4.9629462]
[1735386658411,0.29861,3354.7,3354.6,0.29861]
[1735386660311,1.1719,3354.8,3354.5,4.6643362]
[1735386660512,0.8733,3354.8,3354.5,4.6643362]
[1735386660715,0.8733,3354.8,3354.7,0.29861]
[1735386661812,0.8733,3354.8,3354.7,4.9629462]
[1735386662713,0.8733,3354.8,3354.7,0.29861]
[1735386663011,3.2078,3355.2,3354.6,6.31064233]
[1735386663205,3.2078,3355.2,3355.1,0.29857]
[1735386663401,3.50636,3355.2,3355.1,0.29857]
[1735386663915,3.50636,3355.2,3355.0,0.29857]
[1735386666415,3.50636,3355.2,3354.9,0.74790613]
[1735386666617,3.50636,3355.2,3355.0,0.29857]
[1735386667209,3.2078,3355.2,3355.0,0.29857]
[1735386667404,0.29857,3355.1,3355.0,0.29857]
[1735386669918,4.25426613,3355.2,3355.0,0.29857]
[1735386671621,3.95570613,3355.2,3355.0,0.29857]
[1735386671811,0.29857,3355.1,3355.0,0.29857]
[1735386672916,4.25427613,3355.2,3355.0,0.29857]
[1735386673218,3.95570613,3355.2,3355.0,0.29857]
[1735386673519,0.29857,3355.1,3355.0,0.29857]
[1735386675825,0.2986,3354.8,3354.7,4.9629362]
[1735386676020,1.04650613,3354.8,3354.7,4.6643362]
[1735386676822,1.04650613,3354.8,3354.7,4.9629462]
[1735386677121,0.2986,3354.8,3354.7,4.9629462]
[1735386677317,0.2986,3354.8,3354.7,4.6643362]
[1735386677522,0.29861,3354.7,3354.6,0.29861]
[1735386677927,0.29861,3354.7,3354.5,1.04652613]
[1735386678223,0.4598,3354.6,3354.5,1.04652613]
[1735386679522,0.29861,3354.7,3354.5,1.04652613]
[1735386679925,0.7566,3354.8,3354.6,0.29861]
[1735386680526,0.458,3354.8,3354.7,0.29861]
[1735386680725,0.4645,3354.9,3354.7,0.74790613]
[1735386680927,0.4645,3354.9,3354.8,0.7586]
[1735386681130,0.4645,3354.9,3354.8,1.1882]
[1735386681528,0.458,3355.1,3355.0,0.29858]
[1735386686933,0.4477,3355.3,3355.2,0.29856]
[1735386687138,0.8823,3355.3,3355.2,1.04646613]
[1735386688327,0.8823,3355.3,3355.2,1.47036613]
[1735386689635,0.8823,3355.3,3355.2,6.13470233]
[1735386691833,0.8823,3355.3,3355.2,1.47036613]
[1735386697242,3.2078,3355.6,3355.5,0.29853]
[1735386697436,3.2078,3355.6,3355.5,1.04643613]
[1735386697641,3.2078,3355.6,3355.5,41.84643613]
[1735386701240,3.2078,3355.8,3355.7,0.29851]
[1735386701535,3.2078,3355.8,3355.7,1.04641613]
[1735386701942,0.4287,3355.9,3355.7,0.74790613]
[1735386702137,0.4287,3355.9,3355.8,0.29851]
[1735386702339,0.4287,3355.9,3355.8,0.76781]
[1735386703543,10.71073414,3356.9,3355.9,0.74625]
[1735386703544,7.02968414,3356.9,3355.9,0.74625]
[1735386703742,8.20129817,3357.1,3356.8,4.70361226]
[1735386703943,0.4586,3357.8,3357.0,1.49581226]
[1735386704245,19.16707557,3357.3,3357.2,4.25408613]
[1735386704647,3.2078,3358.1,3357.2,8.95570613]
[1735386704840,3.2078,3358.1,3358.0,0.29831]
[1735386705641,3.2078,3358.1,3358.0,0.29557266]
[1735386712453,0.4419,3358.3,3358.2,0.29829]
[1735386714058,0.45701879,3358.3,3358.2,0.29829]
[1735386715060,0.47213758,3358.3,3358.2,0.29829]
[1735386716256,0.47213758,3358.3,3358.1,1.87526619]
[1735386716460,0.04089146,3358.2,3358.1,1.87526619]
[1735386717356,0.04089146,3358.2,3358.1,1.57696619]
[1735386717564,0.04089146,3358.2,3358.1,1.87526619]
[1735386720273,0.04089146,3358.2,3358.1,1.57696619]
[1735386720471,0.33918146,3358.2,3358.0,0.29831]
[1735386721263,0.33918146,3358.2,3357.9,0.29832]
[1735386721463,0.04089146,3358.1,3358.0,0.29831]
[1735386722166,0.05603756,3358.1,3358.0,0.29831]
[1735386723371,0.05603756,3358.1,3357.9,0.29832]
[1735386723575,0.07116215,3358.1,3358.0,0.29831]
[1735386724671,0.08178292,3358.1,3358.0,0.29831]
[1735386727771,0.08178292,3358.1,3358.0,1.04464876]
[1735386728776,0.08178292,3358.1,3358.0,1.79098752]
[1735386729274,0.08178292,3358.1,3358.0,42.59098752]
[1735386729768,0.08178292,3358.1,3358.0,41.84464876]
[1735386730371,1.2919,3358.2,3358.0,41.54633876]
[1735386730572,0.09691616,3358.1,3358.0,41.84464876]
[1735386731463,0.09691616,3358.1,3358.0,42.59098752]
[1735386732773,0.09691616,3358.1,3358.0,41.84464876]
[1735386732974,0.53261616,3358.1,3358.0,41.84464876]
[1735386733575,0.53261616,3358.1,3358.0,45.05244876]
[1735386734480,0.53261616,3358.1,3358.0,45.79878752]
[1735386734667,0.09691616,3358.1,3358.0,45.79878752]
[1735386735077,0.09691616,3358.1,3358.0,46.24868752]
[1735386735281,0.09691616,3358.1,3358.0,45.79878752]
[1735386735681,0.09691616,3358.1,3358.0,45.05244876]
[1735386735880,0.4602,3358.4,3358.0,44.75413876]
[1735386736082,0.4602,3358.4,3358.3,1.04462876]
[1735386737672,0.29827,3358.5,3358.0,44.0078]
[1735386737879,0.4528,3358.3,3358.2,0.29829]
[1735386739486,0.4528,3358.3,3358.2,1.04462876]
[1735386741473,0.4528,3358.3,3358.1,0.2983]
[1735386741877,0.4528,3358.3,3358.2,0.29829]
[1735386743885,0.4437,3358.4,3358.2,0.74633876]
[1735386744074,0.4307,3358.6,3358.2,1.49206876]
[1735386744278,0.4307,3358.6,3358.5,1.04460876]
[1735386746675,0.4307,3358.6,3358.0,44.0078]
[1735386746878,0.4307,3358.6,3358.4,0.74633876]
[1735386747077,0.29827,3358.5,3358.4,0.74633876]
[1735386747282,0.72897,3358.6,3358.4,1.04461876]
[1735386747874,0.4307,3358.6,3358.4,1.04461876]
[1735386748082,0.29827,3358.5,3358.4,1.04461876]
[1735386748282,0.29827,3358.5,3358.4,0.74633876]
[1735386748682,0.29827,3358.5,3358.4,1.04461876]
[1735386751785,0.72896,3358.6,3358.5,0.29827]
[1735386753887,1.0,3358.5,3358.4,5.37327687]
[1735386754186,1.29827,3358.5,3358.4,5.67154687]
[1735386754886,1.0,3358.5,3358.4,1.04460876]
[1735386755784,1.0,3358.5,3358.4,0.29827]
[1735386756790,1.0,3358.5,3358.4,4.92520811]
[1735386757391,1.0,3358.5,3358.4,5.67154687]
[1735386758686,1.29827,3358.5,3358.4,4.62693811]
[1735386759194,1.0,3358.5,3358.4,4.92521811]
[1735386759393,1.29827,3358.5,3358.4,4.62693811]
[1735386760088,1.0,3358.5,3358.3,4.62693811]
[1735386760493,1.29827,3358.5,3358.3,4.92521811]
[1735386760896,1.0,3358.5,3358.4,0.29828]
[1735386761089,1.0,3358.5,3358.4,4.92521811]
[1735386761289,1.29827,3358.5,3358.4,4.62693811]
[1735386761596,1.0,3358.5,3358.4,4.92521811]
[1735386765197,1.0,3358.5,3358.4,5.36031811]
[1735386767292,1.0,3358.5,3358.4,5.67155687]
[1735386767487,1.0,3358.5,3358.4,1.04461876]
[1735386774804,1.0,3358.5,3358.4,11.89989394]
[1735386776802,1.0,3358.5,3358.4,5.67155687]
[1735386777806,1.0,3358.5,3358.4,1.04461876]
[1735386779100,1.0,3358.5,3358.4,7.27221077]
[1735386779899,1.0,3358.5,3358.4,14.25323636]
[1735386780495,1.0,3358.5,3358.4,18.20737512]
[1735386780907,1.0,3358.5,3358.4,64.4638882]
[1735386781411,0.8765,3359.3,3359.1,0.29821]
[1735386781702,0.8765,3359.3,3359.2,0.74633876]
[1735386781903,0.8765,3359.3,3359.2,1.04454876]
[1735386786112,0.441,3359.3,3359.2,41.84454876]
[1735386786412,0.441,3359.3,3359.2,42.26804876]
[1735386788707,1.0,3359.5,3359.2,41.96983876]
[1735386788908,1.0,3359.5,3359.4,1.04452876]
[1735386789609,1.0,3359.5,3359.4,41.84452876]
[1735386797321,1.0,3359.5,3359.4,45.05232876]
[1735386802722,1.0,3359.5,3359.4,3.50599]
[1735386802928,1.0,3359.5,3359.4,5.43232876]
[1735386803327,1.4455,3359.5,3359.4,46.23232876]
[1735386804527,1.4455,3359.5,3359.4,43.02452876]
[1735386804729,1.4455,3359.5,3359.4,46.23232876]
[1735386807230,1.4455,3359.5,3359.4,4.25232876]
[1735386807630,1.4455,3359.5,3359.4,45.05232876]
[1735386815340,1.4455,3359.5,3359.4,44.0078]
[1735386815639,1.74368,3359.5,3359.4,44.0078]
[1735386817837,1.74368,3359.5,3359.4,3.2078]
[1735386818139,0.2982,3359.3,3359.2,0.74633876]
[1735386818337,0.2982,3359.3,3359.2,41.54633876]
[1735386818537,1.4455,3359.5,3359.2,41.54633876]
[1735386818740,0.29819,3359.4,3359.2,40.8]
[1735386819133,0.29819,3359.4,3359.2,41.0982]
[1735386820041,0.29819,3359.4,3359.3,0.74633876]
[1735386822337,0.2982,3359.3,3359.2,40.8]
[1735386822541,0.29821,3359.1,3359.0,3.2078]
[1735386822737,0.29821,3359.1,3358.7,1.04457876]
[1735386822934,0.29824,3358.8,3358.7,0.74633876]
[1735386823738,0.29824,3358.9,3358.7,1.04458876]
[1735386824841,0.8895,3359.0,3358.4,0.29828]
[1735386825142,0.29825,3358.7,3358.6,0.74633876]
[1735386825942,0.29827,3358.5,3358.4,0.74633876]
[1735386826342,0.29828,3358.4,3358.3,41.54633876]
[1735386826543,0.73808,3358.4,3358.3,41.54633876]
[1735386826843,0.73808,3358.4,3358.3,0.74633876]
[1735386827345,0.4398,3358.4,3358.3,0.74633876]
[1735386827846,0.73808,3358.4,3358.3,0.74633876]
[1735386828039,0.4398,3358.4,3358.2,3.2078]
[1735386828235,3.2078,3358.3,3358.0,40.8]
[1735386828441,0.2983,3358.1,3358.0,41.54633876]
[1735386828745,0.2983,3358.1,3358.0,0.74633876]
[1735386829235,3.2078,3358.3,3358.0,0.74633876]
[1735386829441,0.2983,3358.2,3358.0,0.74633876]
[1735386829639,3.2078,3358.3,3358.0,0.74633876]
[1735386829842,0.2983,3358.2,3358.0,0.74633876]
[1735386830047,3.2078,3358.3,3358.0,0.74633876]
[1735386830346,0.7671,3358.1,3358.0,0.74633876]
[1735386833143,0.7671,3358.1,3357.8,41.84466876]
[1735386833349,0.4664,3358.0,3357.8,41.84466876]
[1735386833847,0.4582,3357.9,3357.8,41.84466876]
[1735386834850,0.4582,3357.9,3357.8,41.54633876]
[1735386836856,0.75652,3357.9,3357.8,41.54633876]
[1735386837155,0.4582,3357.9,3357.8,0.29833]
[1735386837953,0.4582,3357.9,3357.7,41.09833]
[1735386838151,0.4664,3358.0,3357.8,1.04466876]
[1735386838551,0.4664,3358.0,3357.9,0.4674]
[1735386839759,0.4664,3358.0,3357.9,0.76572]
[1735386841350,3.2078,3358.3,3357.9,0.4674]
[1735386841657,3.2078,3358.3,3358.2,1.04462876]
[1735386843058,3.2078,3358.3,3358.2,0.29829]
[1735386843256,3.2078,3358.3,3358.2,1.04462876]
[1735386847256,1.60453,3359.0,3358.2,1.04462876]
[1735386847257,4.81233,3359.0,3358.7,0.29824]
[1735386847459,4.81233,3359.0,3358.8,0.4632]
[1735386848156,3.6377,3359.0,3358.8,0.4632]
[1735386848356,3.93592,3359.0,3358.8,0.4632]
[1735386848559,3.93592,3359.0,3358.9,0.74633876]
[1735386848560,3.2078,3359.0,3358.9,0.74633876]
[1735386848752,3.2078,3359.0,3358.9,1.04456876]
[1735386848957,0.4598,3359.3,3358.9,1.95256876]
[1735386849158,0.29821,3359.2,3358.9,1.95256876]
[1735386849666,0.29821,3359.2,3359.0,40.8]
[1735386850758,0.4598,3359.3,3359.1,0.29821]
[1735386852060,0.758,3359.3,3359.0,0.29822]
[1735386852264,0.4598,3359.3,3359.1,0.29821]
[1735386853061,0.8834,3359.4,3358.9,0.908]
[1735386853263,0.8834,3359.4,3359.1,0.29821]
[1735386853462,1.18159,3359.4,3359.1,0.29821]
[1735386853761,4.50598,3359.5,3359.2,0.2982]
[1735386854064,4.50598,3359.5,3359.3,0.4669]
[1735386855265,0.29819,3359.4,3359.3,0.4669]
[1735386860374,4.2078,3359.5,3359.4,0.29819]
[1735386860972,1.0,3359.5,3359.4,0.29819]
[1735386861173,1.0,3359.5,3359.4,0.72599]
[1735386861479,1.0,3359.5,3359.4,1.18889]
[1735386864877,1.0,3359.5,3359.4,0.29819]
[1735386873694,1.0,3359.5,3359.4,1.0438825]
[1735386875795,1.0,3359.5,3359.4,1.87330206]
[1735386875995,0.925,3359.9,3359.4,1.57511206]
[1735386876297,0.925,3359.9,3359.7,0.29816]
[1735386876892,0.925,3359.9,3359.8,0.29815]
[1735386877197,0.925,3359.9,3359.6,0.29817]
[1735386877390,0.925,3359.9,3359.3,3.2078]
[1735386877598,0.29817,3359.7,3359.4,0.29819]
[1735386877789,0.29819,3359.4,3359.3,3.2078]
[1735386879501,0.29821,3359.2,3358.9,3.50603]
[1735386879800,0.431,3359.1,3358.9,3.50603]
[1735386879992,0.431,3359.1,3358.9,3.2078]
[1735386880196,0.431,3359.1,3359.0,0.29822]
[1735386882099,0.431,3359.1,3359.0,0.74472]
[1735386891101,0.4236,3359.6,3359.0,0.4465]
[1735386891294,1.3088,3359.6,3359.4,0.29818]
[1735386891905,1.3088,3359.6,3359.5,0.29818]
[1735386892703,1.60697,3359.6,3359.5,0.29818]
[1735386894297,1.60697,3359.6,3359.1,6.22328461]
[1735386894506,0.29818,3359.5,3359.4,0.29818]
[1735386895706,1.60697,3359.6,3359.5,0.29818]
[1735386899907,0.2982,3359.3,3359.2,0.2982]
[1735386901904,0.29821,3359.2,3359.1,6.52149461]
[1735386902105,0.74571,3359.2,3359.1,6.52149461]
[1735386902703,0.74571,3359.2,3359.1,4.94638255]
[1735386903712,0.74571,3359.2,3359.1,5.39408174]
[1735386904107,0.4475,3359.2,3359.1,5.69229174]
[1735386904501,0.74571,3359.2,3359.1,5.69229174]
[1735386904705,0.4475,3359.2,3359.1,8.90009174]
[1735386905816,0.4475,3359.2,3359.1,14.19726514]
[1735386906507,0.4475,3359.2,3359.1,17.40506514]
[1735386907014,0.4475,3359.2,3359.1,10.43280631]
[1735386907813,0.4475,3359.2,3359.1,17.40506514]
[1735386908513,0.2982,3359.3,3359.1,17.40506514]
[1735386909310,0.438,3359.5,3359.1,17.10685514]
[1735386909513,0.29819,3359.4,3359.3,0.74590919]
[1735386912110,0.09819,3359.4,3359.3,0.74590919]
[1735386912317,3.2078,3359.8,3359.3,0.74590919]
[1735386912318,8.17182399,3360.6,3360.5,0.29809]
[1735386912613,12.65154917,3360.8,3360.7,0.29807]
[1735386912912,9.05168595,3361.0,3360.9,1.35958216]
[1735386913117,0.444,3362.4,3362.0,0.29796]
[1735386913309,21.29839575,3362.1,3362.0,5.41366919]
[1735386913512,21.29839575,3362.1,3362.0,46.21366919]
[1735386913708,21.29839575,3362.1,3362.0,47.04048513]
[1735386914216,8.45299595,3362.1,3362.0,47.04048513]
[1735386914517,8.45299595,3362.1,3362.0,45.46776]
[1735386915218,8.45299595,3362.1,3362.0,50.11766163]
[1735386916118,8.45299595,3362.1,3362.0,45.46776]
[1735386916718,8.45299595,3362.1,3362.0,4.66776]
[1735386919521,8.45299595,3362.1,3362.0,6.24048513]
[1735386919821,8.45299595,3362.1,3362.0,3.50576]
[1735386920125,8.45299595,3362.1,3362.0,4.66676]
[1735386923520,3.98260359,3362.1,3362.0,4.66676]
[1735386925027,3.50569,3362.8,3362.2,0.29793]
[1735386925221,3.51299,3362.6,3362.4,1.57272513]
[1735386925821,3.51299,3362.6,3362.4,1.57006872]
[1735386926026,3.51299,3362.6,3362.4,1.86798872]
[1735386926328,3.51299,3362.6,3362.4,1.57006872]
[1735386927326,3.51299,3362.6,3362.4,1.86798872]
[1735386927622,3.2078,3363.7,3362.5,0.74479]
[1735386927926,0.29783,3363.5,3363.1,1.87058513]
[1735386928120,0.4453,3363.6,3363.1,2.73372513]
[1735386928319,3.51299,3363.4,3363.3,0.29784]
[1735386929035,3.51299,3363.4,3363.1,1.161]
[1735386929231,3.51299,3363.4,3362.5,0.8982]
[1735386929232,3.51299,3363.2,3362.5,3.2078]
[1735386929426,3.51299,3362.6,3362.5,3.2078]
[1735386930625,3.96819,3362.6,3362.5,3.2078]
[1735386932832,3.96819,3362.6,3362.5,3.50571]
[1735386933035,0.4552,3362.6,3362.5,3.50571]
[1735386933429,3.51299,3362.6,3362.5,3.2078]
[1735386933629,3.51299,3362.6,3362.5,3.50571]
[1735386934035,3.51299,3362.6,3362.5,44.30571]
[1735386934232,0.29788,3363.0,3362.5,44.30571]
[1735386934233,0.4413,3363.2,3362.5,44.0078]
[1735386934435,3.51299,3363.1,3363.0,0.29787]
[1735386934728,3.95429,3363.2,3363.1,1.57272513]
[1735386935031,3.95429,3363.2,3363.1,1.87058513]
[1735386935542,0.9199,3363.7,3363.5,0.29782]
[1735386936036,3.51299,3363.6,3363.5,0.29782]
[1735386936229,3.51299,3363.7,3363.4,1.57272513]
[1735386936427,1.6138533,3363.6,3363.5,41.09782]
[1735386936631,1.6138533,3363.8,3363.7,0.2978]
[1735386936841,1.6138533,3363.8,3363.7,5.07832513]
[1735386937328,0.29777,3364.2,3363.7,3.2078]
[1735386937528,3.2078,3364.3,3363.8,1.57272513]
[1735386937838,1.6138533,3364.0,3363.9,40.8]
[1735386938136,0.29778,3364.0,3363.9,40.8]
[1735386938336,1.6138533,3364.0,3363.4,0.29783]
[1735386938534,0.29783,3363.4,3363.3,3.2078]
[1735386938830,1.9116833,3363.4,3363.3,3.2078]
[1735386942027,0.29785,3363.2,3363.1,3.2078]
[1735386942541,1.6138533,3363.2,3362.7,1.50589]
[1735386942735,0.9111,3363.1,3362.7,1.208]
[1735386942941,1.6138533,3362.8,3362.7,1.50589]
[1735386943133,1.6138533,3362.8,3362.7,1.58047105]
[1735386943534,1.6138533,3362.8,3362.7,0.37247105]
[1735386944338,1.6138533,3362.8,3362.7,41.47037105]